[Event "44th Chess Olympiad Women 2022"]
[Site "Chennai"]
[Date "2022.07.30"]
[Round "2.50"]
[White "Chong, Kimberly"]
[Black "Sisior, Angelil"]
[Result "0-1"]
[ECO "B22"]
[WhiteElo "1741"]
[BlackElo "1488"]
[Annotator "NA RC COMBH"]
[PlyCount "100"]
[EventDate "2022.07.29"]
[EventType "team-tourn"]
[EventCountry "IND"]
[SourceTitle "playchess.com"]
[Source "ChessBase"]
[SourceQuality "1"]
[WhiteTeam "Wales"]
[BlackTeam "PLW"]
[WhiteTeamCountry "WLS"]
[TimeControl "40/5400+30:1800+30"]

1. e4 {[%emt 0:00:03]} c5 {[%emt 0:00:11]} 2. c3 {[%emt 0:00:13]} Nc6 {[%emt 0:00:30]} 3. d4 {[%emt 0:00:27]} cxd4 {[%emt 0:00:45]} 4. cxd4 {[%emt 0:00:14]} g6 {[%emt 0:00:17]} 5. d5 {[%emt 0:04:28]} Nb8 {[%emt 0:02:38]} 6. Qd4 {[%emt 0:10:01]} Nf6 {[%emt 0:02:34]} 7. e5 {[%emt 0:02:58]} Nh5 {[%emt 0:02:39]} 8. g4 {[%emt 0:17:09]} Ng7 {[%emt 0:06:37]} 9. Bc4 {[%emt 0:11:50]} e6 {[%emt 0:09:51]} 10. d6 {[%emt 0:02:14]} Nc6 {[%emt 0:00:59]} 11. Qc3 {[%emt 0:03:39]} a6 {[%emt 0:05:35]} 12. a4 {[%emt 0:05:21]} Qa5 {[%emt 0:00:21]} 13. Qxa5 {[%emt 0:02:03]} Nxa5 {[%emt 0:00:07]} 14. Ba2 {[%emt 0:01:52]} Nc6 {[%emt 0:05:02]} 15. Nf3 {[%emt 0:09:14]} Nb4 {[%emt 0:02:31]} 16. Na3 {[%emt 0:00:45]} b6 {[%emt 0:01:13]} 17. O-O {[%emt 0:05:31]} Bb7 {[%emt 0:01:29]} 18. Nd4 {[%emt 0:00:41]} Nd3 {[%emt 0:01:00]} 19. Nc4 {[%emt 0:01:44]} Rb8 {[%emt 0:05:04]} 20. Nxb6 {[%emt 0:01:27]} Nxe5 {[%emt 0:00:23]} 21. Bh6 {[%emt 0:08:36]} Nxg4 {[%emt 0:00:23]} 22. Bxg7 {[%emt 0:02:02]} Bxg7 {[%emt 0:00:04]} 23. Rfd1 {[%emt 0:01:16]} Be5 {[%emt 0:03:41]} 24. a5 {[%emt 0:03:01]} Bxh2+ {[%emt 0:00:23]} 25. Kf1 {[%emt 0:00:06]} Bxd6 {[%emt 0:01:01]} 26. Nxe6 {[%emt 0:00:14]} Nh2+ {[%emt 0:01:23]} 27. Kg1 {[%emt 0:00:51]} Nf3+ {[%emt 0:00:28]} 28. Kf1 {[%emt 0:00:08]} fxe6 {[%emt 0:05:43]} 29. Rxd6 {[%emt 0:00:08]} Bc6 {[%emt 0:01:05]} 30. Bxe6 {[%emt 0:01:22]} Bb5+ {[%emt 0:01:09]} 31. Bc4 {[%emt 0:01:13]} Bxc4+ {[%emt 0:01:06]} 32. Nxc4 {[%emt 0:00:04]} O-O {[%emt 0:00:49]} 33. Rxa6 {[%emt 0:02:39]} Nh2+ {[%emt 0:00:21]} 34. Kg2 {[%emt 0:00:21]} Ng4 {[%emt 0:00:06]} 35. f3 {[%emt 0:00:25]} d5 {[%emt 0:01:56]} 36. Nb6 {[%emt 0:00:23]} Ne3+ {[%emt 0:00:42]} 37. Kf2 {[%emt 0:00:32]} Nc4 {[%emt 0:01:09]} 38. Rd1 {[%emt 0:03:06]} Nxa5 {[%emt 0:05:21]} 39. Rxd5 {[%emt 0:00:44]} Nc6 {[%emt 0:00:55]} 40. Rc5 {[%emt 0:00:52]} Nb4 {[%emt 0:08:37]} 41. Ra3 {[%emt 0:08:22]} Rxb6 {[%emt 0:00:00]} 42. Rc7 {[%emt 0:01:15]} Nd5 {[%emt 0:00:00]} 43. Rc2 {[%emt 0:01:41]} Rfb8 {[%emt 0:00:00]} 44. Kg3 {[%emt 0:01:00]} Rxb2 {[%emt 0:00:00]} 45. Rc5 {[%emt 0:00:46]} Nf6 {[%emt 0:00:00]} 46. Rc7 {[%emt 0:03:20]} Rf8 {[%emt 0:00:00]} 47. Raa7 {[%emt 0:01:18]} Nh5+ {[%emt 0:00:10]} 48. Kh4 {[%emt 0:05:07]} h6 {[%emt 0:06:25]} 49. Kh3 {[%emt 0:06:28]} Rxf3+ {[%emt 0:03:20]} 50. Kg4 {[%emt 0:00:05]} Rg3+ {[%emt 0:01:11]} 0-1

[Event "44th Chess Olympiad Women 2022"]
[Site "Chennai"]
[Date "2022.07.30"]
[Round "2.50"]
[White "Magno, Angelica"]
[Black "Smith, Olivia"]
[Result "0-1"]
[ECO "E15"]
[WhiteElo "1211"]
[BlackElo "2038"]
[Annotator "TA"]
[PlyCount "60"]
[EventDate "2022.07.29"]
[EventType "team-tourn"]
[EventCountry "IND"]
[SourceTitle "playchess.com"]
[Source "ChessBase"]
[SourceQuality "1"]
[WhiteTeam "PLW"]
[BlackTeam "Wales"]
[BlackTeamCountry "WLS"]
[TimeControl "40/5400+30:1800+30"]

{[%evp 9,60,-112,-119,-106,-106,-116,-119,-137,-118,-168,-164,-167,-125,-141,-133,-127,-114,-119,-117,-114,-102,-224,-218,-223,-227,-229,-222,-224,-227,-228,-186,-302,-302,-308,-302,-330,-335,-370,-373,-374,-375,-472,-473,-1228,-1216,-1141,-608,-1375,-1375,-1297,-1278,-1437,-1266]} 1. d4 {[%emt 0:00:11]} Nf6 {[%emt 0:00:10]} 2. c4 {[%emt 0:00:41]} e6 {[%emt 0:00:21]} 3. Nf3 {[%emt 0:00:45]} b6 {[%emt 0:00:07]} 4. g3 {[%emt 0:00:42]} Ba6 {[%emt 0:00:17][%cal Bc8a6,Ba6c4,Bc4d5][%mdl 32] [#]} 5. Na3 $146 {[%emt 0:03:07]} ({Predecessor:} 5. b3 Bb4+ 6. Bd2 Be7 7. Nc3 d5 8. cxd5 exd5 9. Bg2 O-O 10. O-O Re8 11. Rc1 Nbd7 12. Bf4 c6 13. Rc2 h6 14. Qc1 Bb4 15. a3 Bxc3 16. Rxc3 Bxe2 17. Re1 Bxf3 18. Rxe8+ Qxe8 19. Bxf3 {½-½ (34) Wei,Y (2729)-Ding,L (2799) Hangzhou 2022}) 5... Bxa3 {[%emt 0:00:58]} 6. bxa3 {[%emt 0:00:41] E15: Queen's Indian: 4 g3 sidelines, 4 g3 Ba6 and 4 g3 Bb7 early deviations.} Bxc4 {[%emt 0:00:17]} 7. Bg2 {[%emt 0:00:37]} Bd5 {[%emt 0:00:57]} 8. O-O {[%emt 0:02:19] Black is better.} O-O {[%emt 0:00:33]} 9. Bd2 {[%emt 0:02:23]} (9. Bg5 $17) 9... d6 $19 {[%emt 0:01:08]} 10. Re1 {[%emt 0:04:48]} Ne4 {[%emt 0:01:10] Inhibits Bg5.} 11. Bc1 {[%emt 0:06:11]} Nd7 {[%emt 0:00:59]} 12. Nd2 {[%emt 0:04:08]} f5 {[%emt 0:01:08]} 13. f3 {[%emt 0:09:19]} Nxd2 {[%emt 0:06:07] Black is much more active. The white rooks are badly placed.} ({But not} 13... Nc3 $6 14. Qc2 Nb5 15. Qd3 $11) 14. Bxd2 {[%emt 0:01:09]} Qf6 {[%emt 0:01:48]} 15. e4 {[%emt 0:08:10] Now White is beyond hope.} (15. Bf4 $17) 15... Qxd4+ {[%emt 0:01:53]} 16. Be3 {[%emt 0:06:53]} Qxd1 {[%emt 0:00:28]} 17. Rexd1 {[%emt 0:02:02]} fxe4 {[%emt 0:01:19]} 18. fxe4 {[%emt 0:00:52]} Bb7 {[%emt 0:00:24]} 19. Rac1 {[%emt 0:02:12]} Nc5 {[%emt 0:02:00]} 20. h4 {[%emt 0:10:15]} (20. e5 $142) 20... e5 {[%emt 0:01:07]} 21. Kh2 {[%emt 0:04:28]} h6 {[%emt 0:03:35]} 22. a4 {[%emt 0:01:37]} Rf7 {[%emt 0:00:47]} 23. Bxc5 {[%emt 0:01:43]} bxc5 {[%emt 0:00:06]} ({Wrong is} 23... dxc5 $2 24. a5 $19) 24. Rb1 {[%emt 0:00:54]} Bc6 {[%emt 0:00:25] Threatens to win with ...Rf2.} 25. a5 {[%emt 0:00:40]} Rf2 {[%emt 0:00:29][%csl LRa2,LRe4] [#] Hoping for ...Bxe4. Black is clearly winning.} 26. a3 {[%emt 0:01:23]} (26. Kg1 $142 Rxa2 27. Ra1) 26... Bxe4 {[%emt 0:00:27]} 27. Rg1 {[%emt 0:02:13]} Raf8 {[%emt 0:05:06]} 28. Kh3 {[%emt 0:02:37]} Rxg2 {[%emt 0:02:05]} 29. Rxg2 {[%emt 0:01:09]} Bxb1 {[%emt 0:00:06]} 30. Rb2 {[%emt 0:00:27]} Be4 {[%emt 0:00:22] Weighted Error Value: White=0.70/Black=0.23 (precise)} 0-1

[Event "44th Chess Olympiad Women 2022"]
[Site "Chennai"]
[Date "2022.07.30"]
[Round "2.51"]
[White "Vasquez Jaen, Lourdes Lorena"]
[Black "Alazmi, Amani"]
[Result "1-0"]
[ECO "B90"]
[WhiteElo "1653"]
[BlackElo "1506"]
[Annotator "NA RC COMBH"]
[PlyCount "49"]
[EventDate "2022.07.29"]
[EventType "team-tourn"]
[EventCountry "IND"]
[SourceTitle "playchess.com"]
[Source "ChessBase"]
[SourceQuality "1"]
[WhiteTeam "Panama"]
[BlackTeam "Kuwait"]
[WhiteTeamCountry "PAN"]
[BlackTeamCountry "KUW"]
[TimeControl "40/5400+30:1800+30"]

1. e4 {[%emt 0:00:04]} c5 {[%emt 0:00:03]} 2. Nf3 {[%emt 0:00:09]} d6 {[%emt 0:00:06]} 3. d4 {[%emt 0:00:02]} cxd4 {[%emt 0:00:06]} 4. Nxd4 {[%emt 0:00:04]} Nf6 {[%emt 0:00:05]} 5. Nc3 {[%emt 0:00:15]} a6 {[%emt 0:00:04]} 6. f3 {[%emt 0:00:24]} e5 {[%emt 0:00:02]} 7. Nb3 {[%emt 0:00:37]} Be6 {[%emt 0:00:14]} 8. Be3 {[%emt 0:01:35]} Be7 {[%emt 0:00:32]} 9. Qd2 {[%emt 0:01:17]} d5 {[%emt 0:00:30]} 10. exd5 {[%emt 0:00:22]} Bxd5 {[%emt 0:00:36]} 11. Nxd5 {[%emt 0:08:40]} Qxd5 {[%emt 0:01:55]} 12. O-O-O {[%emt 0:04:39]} Qxd2+ {[%emt 0:00:31]} 13. Rxd2 {[%emt 0:00:29]} Nc6 {[%emt 0:00:15]} 14. Nc5 {[%emt 0:06:58]} b5 {[%emt 0:00:52]} 15. Nxa6 {[%emt 0:04:30]} O-O {[%emt 0:00:07]} 16. Bxb5 {[%emt 0:00:35]} Nb8 {[%emt 0:01:56]} 17. Nxb8 {[%emt 0:01:49]} Rfxb8 {[%emt 0:00:06]} 18. Bc4 {[%emt 0:00:20]} Rb4 {[%emt 0:00:47]} 19. Bb3 {[%emt 0:01:20]} e4 {[%emt 0:00:11]} 20. fxe4 {[%emt 0:00:34]} Ng4 {[%emt 0:00:14]} 21. Bf4 {[%emt 0:03:17]} Rxe4 {[%emt 0:00:39]} 22. Bd5 {[%emt 0:01:13]} Rxf4 {[%emt 0:00:17]} 23. Bxa8 {[%emt 0:00:06]} Bg5 {[%emt 0:00:42]} 24. h4 {[%emt 0:03:04]} Bh6 {[%emt 0:00:11]} 25. Rd8# {[%emt 0:00:24]} 1-0

[Event "44th Chess Olympiad Women 2022"]
[Site "Chennai"]
[Date "2022.07.30"]
[Round "2.51"]
[White "Castillo Beitia, Ashley Alexandra"]
[Black "Alazmi, Aeshah"]
[Result "1-0"]
[ECO "D06"]
[WhiteElo "1587"]
[BlackElo "1256"]
[Annotator "NA RC COMBH"]
[PlyCount "68"]
[EventDate "2022.07.29"]
[EventType "team-tourn"]
[EventCountry "IND"]
[SourceTitle "playchess.com"]
[Source "ChessBase"]
[SourceQuality "1"]
[WhiteTeam "Panama"]
[BlackTeam "Kuwait"]
[WhiteTeamCountry "PAN"]
[BlackTeamCountry "KUW"]
[TimeControl "40/5400+30:1800+30"]

1. d4 {[%emt 0:00:06]} d5 {[%emt 0:00:04]} 2. c4 {[%emt 0:00:08]} Nf6 {[%emt 0:00:19]} 3. Nc3 {[%emt 0:00:07]} Bf5 {[%emt 0:00:18]} 4. Qb3 {[%emt 0:02:36]} Nc6 {[%emt 0:01:39]} 5. cxd5 {[%emt 0:01:20]} Nxd5 {[%emt 0:04:36]} 6. Nxd5 {[%emt 0:07:15]} Be6 {[%emt 0:00:28]} 7. e4 {[%emt 0:00:16]} Nxd4 {[%emt 0:01:45]} 8. Qxb7 {[%emt 0:11:54]} Rc8 {[%emt 0:00:26]} 9. Bd3 {[%emt 0:01:42]} Bd7 {[%emt 0:14:20]} 10. Qxa7 {[%emt 0:01:56]} Nb5 {[%emt 0:00:19]} 11. Bxb5 {[%emt 0:00:51]} Bxb5 {[%emt 0:00:05]} 12. Bf4 {[%emt 0:00:29]} e6 {[%emt 0:03:12]} 13. Qa5 {[%emt 0:03:00]} exd5 {[%emt 0:03:39]} 14. Qxb5+ {[%emt 0:00:18]} c6 {[%emt 0:00:11]} 15. Qd3 {[%emt 0:01:58]} Bb4+ {[%emt 0:03:40]} 16. Bd2 {[%emt 0:00:22]} Bxd2+ {[%emt 0:00:19]} 17. Qxd2 {[%emt 0:00:17]} dxe4 {[%emt 0:00:08]} 18. Qxd8+ {[%emt 0:00:11]} Rxd8 {[%emt 0:00:02]} 19. Rc1 {[%emt 0:00:09]} Rd6 {[%emt 0:00:33]} 20. Ne2 {[%emt 0:00:10]} O-O {[%emt 0:00:19]} 21. Nc3 {[%emt 0:00:50]} Re8 {[%emt 0:00:45]} 22. Ke2 {[%emt 0:00:08]} f5 {[%emt 0:00:17]} 23. Rhd1 {[%emt 0:00:07]} Rg6 {[%emt 0:01:52]} 24. g3 {[%emt 0:00:20]} Rf6 {[%emt 0:02:58]} 25. Rd7 {[%emt 0:00:26]} f4 {[%emt 0:00:28]} 26. Rcd1 {[%emt 0:00:06]} Kf8 {[%emt 0:04:10]} 27. Rd8 {[%emt 0:00:31]} g5 {[%emt 0:09:48]} 28. Rxe8+ {[%emt 0:00:14]} Kxe8 {[%emt 0:00:03]} 29. Nxe4 {[%emt 0:00:09]} Re6 {[%emt 0:00:20]} 30. f3 {[%emt 0:00:02]} fxg3 {[%emt 0:01:09]} 31. hxg3 {[%emt 0:00:09]} h5 {[%emt 0:00:10]} 32. a4 {[%emt 0:00:05]} Kf7 {[%emt 0:05:23]} 33. a5 {[%emt 0:00:36]} Kg6 {[%emt 0:02:32]} 34. Rd7 {[%emt 0:01:02]} Rd6 {[%emt 0:00:51]} 1-0

[Event "44th Chess Olympiad Women 2022"]
[Site "Chennai"]
[Date "2022.07.30"]
[Round "2.51"]
[White "Alhasan, Zainah"]
[Black "Munoz Henriquez, Alba Esther"]
[Result "0-1"]
[ECO "B18"]
[WhiteElo "1095"]
[BlackElo "1588"]
[Annotator "NA RC COMBH"]
[PlyCount "74"]
[EventDate "2022.07.29"]
[EventType "team-tourn"]
[EventCountry "IND"]
[SourceTitle "playchess.com"]
[Source "ChessBase"]
[SourceQuality "1"]
[WhiteTeam "Kuwait"]
[BlackTeam "Panama"]
[WhiteTeamCountry "KUW"]
[BlackTeamCountry "PAN"]
[TimeControl "40/5400+30:1800+30"]

1. e4 {[%emt 0:00:03]} c6 {[%emt 0:00:06]} 2. d4 {[%emt 0:00:07]} d5 {[%emt 0:00:09]} 3. Nc3 {[%emt 0:00:05]} dxe4 {[%emt 0:00:08]} 4. Nxe4 {[%emt 0:00:08]} Bf5 {[%emt 0:00:15]} 5. Bd3 {[%emt 0:00:41]} Qxd4 {[%emt 0:01:51]} 6. Ng3 {[%emt 0:01:39]} Bxd3 {[%emt 0:00:38]} 7. Qxd3 {[%emt 0:00:22]} Qxd3 {[%emt 0:03:18]} 8. cxd3 {[%emt 0:00:12]} e6 {[%emt 0:00:10]} 9. Nf3 {[%emt 0:01:57]} Nf6 {[%emt 0:00:31]} 10. Bg5 {[%emt 0:00:52]} Bb4+ {[%emt 0:00:25]} 11. Ke2 {[%emt 0:00:29]} Nd5 {[%emt 0:01:23]} 12. Bd2 {[%emt 0:01:18]} Bxd2 {[%emt 0:00:24]} 13. Kxd2 {[%emt 0:00:10]} O-O {[%emt 0:00:13]} 14. Rhe1 {[%emt 0:01:06]} Nd7 {[%emt 0:00:19]} 15. Ne4 {[%emt 0:01:40]} N7f6 {[%emt 0:02:08]} 16. Ne5 {[%emt 0:00:53]} Rfd8 {[%emt 0:02:25]} 17. Ng5 {[%emt 0:00:33]} Nb4 {[%emt 0:03:36]} 18. Ngxf7 {[%emt 0:00:29]} Rd5 {[%emt 0:00:41]} 19. Ng5 {[%emt 0:00:30]} Nxd3 {[%emt 0:00:51]} 20. Nxd3 {[%emt 0:00:23]} Rxg5 {[%emt 0:00:14]} 21. Nf4 {[%emt 0:00:34]} e5 {[%emt 0:00:47]} 22. Nd3 {[%emt 0:03:10]} Rd8 {[%emt 0:01:09]} 23. g3 {[%emt 0:01:24]} e4 {[%emt 0:00:15]} 24. f4 {[%emt 0:01:11]} Rxd3+ {[%emt 0:00:20]} 25. Kc2 {[%emt 0:00:30]} Rc5+ {[%emt 0:00:09]} 26. Kb1 {[%emt 0:00:34]} e3 {[%emt 0:00:11]} 27. a3 {[%emt 0:00:29]} Nd5 {[%emt 0:00:54]} 28. Ka2 {[%emt 0:01:09]} Rc2 {[%emt 0:01:46]} 29. Rac1 {[%emt 0:00:44]} Rxh2 {[%emt 0:00:55]} 30. Rcd1 {[%emt 0:00:41]} Rxd1 {[%emt 0:00:37]} 31. Rxd1 {[%emt 0:00:09]} Nc3+ {[%emt 0:00:05]} 32. Kb3 {[%emt 0:00:20]} Nxd1 {[%emt 0:00:05]} 33. Ka4 {[%emt 0:00:32]} e2 {[%emt 0:00:12]} 34. b4 {[%emt 0:00:45]} e1=Q {[%emt 0:00:16]} 35. g4 {[%emt 0:00:18]} Qc3 {[%emt 0:00:30]} 36. f5 {[%emt 0:00:13]} Nb2+ {[%emt 0:00:10]} 37. Ka5 {[%emt 0:00:08]} Qxa3# {[%emt 0:01:05]} 0-1

[Event "44th Chess Olympiad Women 2022"]
[Site "Chennai"]
[Date "2022.07.30"]
[Round "2.52"]
[White "San Diego, Marie Antoinette"]
[Black "Sakai, Azumi"]
[Result "0-1"]
[ECO "C12"]
[WhiteElo "2101"]
[BlackElo "1759"]
[Annotator "TA"]
[PlyCount "164"]
[EventDate "2022.07.29"]
[EventType "team-tourn"]
[EventCountry "IND"]
[SourceTitle "playchess.com"]
[Source "ChessBase"]
[SourceQuality "1"]
[WhiteTeam "Philippines"]
[BlackTeam "Japan"]
[WhiteTeamCountry "PHI"]
[BlackTeamCountry "JPN"]
[TimeControl "40/5400+30:1800+30"]

{[%evp 16,163,11,9,22,0,0,0,0,3,29,40,41,15,15,9,16,18,20,21,95,25,26,14,18,0,6,13,17,5,7,0,124,-12,-16,-16,-16,-16,-12,-20,-10,-45,-45,-45,-45,-45,-45,-45,-45,-71,-53,-58,-45,-81,-80,-80,-80,-80,-80,-80,-72,-93,-100,-100,-100,-125,-125,-125,-125,-126,-126,-126,-125,-111,-111,-126,-126,-126,-126,-122,-126,-126,0,-126,0,-126,-126,-126,-110,-962,-909,-775,-748,-638,-568,-504,-186,-241,-230,-29966,-185,-29964,-29970,-29959,-29943,-29980,-29981,-29981,-29982,-29982,-29983,-29983,-29984,-29984,-29985,-29985,-29985,-29987,-29987,-29987,-29988,-29988,-29989,-29989,-29989,-29990,-29991,-29991,-29992,-29993,-29993,-29993,-29994,-29995,-29994,-29994,-29995,-29995,-29996,-29996,-29996,-29996,-29996,-29996,-29997,-29997,-29998,-29998,-29999,-29999]} 1. e4 {[%emt 0:00:07]} e6 {[%emt 0:00:04]} 2. d4 {[%emt 0:00:26]} d5 {[%emt 0:00:11]} 3. Nc3 {[%emt 0:00:39]} Nf6 {[%emt 0:00:06]} 4. Bg5 {[%emt 0:01:01]} Bb4 {[%emt 0:00:17]} 5. e5 {[%emt 0:01:57]} h6 {[%emt 0:00:07]} 6. Bd2 {[%emt 0:01:15]} Bxc3 {[%emt 0:00:31]} 7. Bxc3 {[%emt 0:00:27]} Ne4 {[%emt 0:00:17]} 8. Ne2 {[%emt 0:02:25] is the legacy move (8.Bb4).} c5 {[%emt 0:01:35]} 9. dxc5 $1 {[%emt 0:01:17]} Nxc5 {[%emt 0:01:50] [#] C12: French: Classical System: McCutcheon Variation.} 10. g3 $146 {[%emt 0:02:32]} (10. Bd4 $5 {[%cal Rd4c5]} Qe7 11. b4 $11) ({Predecessor:} 10. Bd4 Qc7 11. Nc3 a6 12. f4 O-O 13. Be2 b5 14. a3 Bb7 15. O-O Ncd7 16. Bd3 Nc6 17. Bf2 {1-0 (35) Juarez de Vena,A (1960)-Roberts,D (1856) ICCF email 2013}) 10... O-O {[%emt 0:02:00]} 11. Bg2 {[%emt 0:00:22]} Nc6 {[%emt 0:00:54] The position is equal.} 12. O-O {[%emt 0:00:29]} Nd7 {[%emt 0:05:28]} 13. f4 {[%emt 0:03:26]} b6 {[%emt 0:03:42]} 14. b4 {[%emt 0:02:30]} Ba6 {[%emt 0:02:38]} 15. a4 {[%emt 0:01:58]} Bc4 {[%emt 0:00:40]} 16. Rf2 {[%emt 0:01:56]} Rc8 {[%emt 0:02:47]} 17. Nd4 {[%emt 0:02:06]} Ndb8 {[%emt 0:07:33]} (17... Nxd4 $11 18. Bxd4 Qc7) 18. b5 {[%emt 0:01:59]} ({Better is} 18. Nb5 $1 $16) 18... Nxd4 $11 {[%emt 0:03:18]} 19. Bxd4 {[%emt 0:00:37]} (19. Qxd4 {with more complications.} Nd7 20. f5 exf5 21. e6) 19... Nd7 {[%emt 0:00:45][%cal Bb8d7,Bd7c5,Bc5e6][%mdl 32]} 20. Bh3 {[%emt 0:02:33]} Nc5 {[%emt 0:03:58]} 21. f5 {[%emt 0:00:59]} exf5 {[%emt 0:03:07]} 22. Bxf5 {[%emt 0:01:10]} Ne6 {[%emt 0:01:09]} 23. Qg4 {[%emt 0:02:34]} Qe7 {[%emt 0:01:14]} (23... Nxd4 $11 {keeps the balance.} 24. Qxd4 Rc7) 24. a5 {[%emt 0:01:29]} ({White should play} 24. Be3 $16) 24... Bxb5 {[%emt 0:06:12]} 25. axb6 {[%emt 0:00:15]} axb6 {[%emt 0:00:31]} 26. Bxb6 {[%emt 0:00:19] A strong pair of Bishops.} Rc4 {[%emt 0:00:31]} 27. Qf3 {[%emt 0:03:33]} Bc6 {[%emt 0:05:07]} 28. Ra7 {[%emt 0:02:10]} Qb4 {[%emt 0:01:07]} 29. Bxe6 {[%emt 0:02:05]} fxe6 {[%emt 0:00:43] The board is on fire.} 30. Qxf8+ {[%emt 0:00:35]} Qxf8 {[%emt 0:00:13]} 31. Rxf8+ {[%emt 0:00:22]} Kxf8 $15 {[%emt 0:00:07][%mdl 4096] Endgame KRB-KRB} 32. Ra2 {[%emt 0:00:35]} d4 {[%emt 0:02:49]} 33. Kf2 {[%emt 0:00:19]} Be4 {[%emt 0:00:19]} 34. Ke2 {[%emt 0:01:50]} Rxc2+ {[%emt 0:01:40]} 35. Rxc2 {[%emt 0:00:17]} d3+ {[%emt 0:00:18]} 36. Kd2 {[%emt 0:00:38]} dxc2 $17 {[%emt 0:00:06] KB-KB} 37. h4 {[%emt 0:00:16]} h5 {[%emt 0:00:35]} 38. Ba5 {[%emt 0:00:25]} Ke7 {[%emt 0:01:46]} 39. Bc3 {[%emt 0:00:23]} Kd7 {[%emt 0:00:10]} 40. Bb2 {[%emt 0:00:09]} Kc6 {[%emt 0:01:13]} 41. Ke3 {[%emt 0:30:13]} Kd5 {[%emt 0:30:33]} 42. Kf4 {[%emt 0:00:41]} Bf5 {[%emt 0:00:27]} 43. Ke3 {[%emt 0:00:50]} Kc4 {[%emt 0:04:47]} 44. Kd2 {[%emt 0:00:14]} Kb3 {[%emt 0:00:57]} 45. Bc1 {[%emt 0:00:11]} g6 {[%emt 0:01:08]} 46. Ke3 {[%emt 0:00:34]} Ka2 {[%emt 0:00:52]} 47. Kd2 {[%emt 0:00:12]} Kb1 {[%emt 0:00:28]} 48. Ba3 {[%emt 0:00:37]} Ka2 {[%emt 0:01:31]} 49. Bc1 {[%emt 0:00:12]} Kb3 {[%emt 0:00:08]} 50. Ke3 {[%emt 0:00:15]} Kc3 {[%emt 0:00:40]} 51. Ke2 {[%emt 0:01:14]} Kd4 {[%emt 0:00:34] And now ...Bg4+ would win.} 52. Bb2+ $2 {[%emt 0:00:21][%mdl 8192] [#] Now White is beyond hope.} (52. Bf4 $17) 52... Ke4 $1 $19 {[%emt 0:00:25]} 53. Kf2 {[%emt 0:00:20]} Bg4 {[%emt 0:00:31]} 54. Bc1 {[%emt 0:00:20]} Kxe5 {[%emt 0:00:13]} 55. Ke3 {[%emt 0:00:24]} Bf5 $2 {[%emt 0:00:48]} (55... Bd1 {White must now prevent ...Kf5.} 56. Ba3 Kf5) 56. Bb2+ {[%emt 0:00:17]} Kd5 {[%emt 0:00:19] aiming for ...Bg4.} 57. Kf4 {[%emt 0:00:22] [#]} (57. Kd2 $19) 57... Be4 $2 {[%emt 0:00:57]} (57... Kc4 $1 {mates} 58. Bc1 Kb3 59. Ke3 Ka2 60. Kd2 e5 61. Ke3 Kb1 62. Kd2 Be6 63. Ba3 Bg4 64. Ke3 Bf5 65. Kd2 e4 66. Ke3 c1=Q+ 67. Bxc1 Kxc1 68. Ke2 Kc2 69. Ke3 Kd1 70. Kf4 Kd2 71. Kg5 e3 72. g4 Bxg4 73. Kh6 e2 74. Kg7 e1=Q 75. Kf8 Qe6 76. Kg7 Bf5 77. Kh8 g5 78. Kg7 Qe7+ 79. Kh6 Qf6+ 80. Kxh5 Qg6#) 58. Kg5 $2 {[%emt 0:00:18]} (58. Ke3 $19) 58... Kc4 {[%emt 0:00:37] Black mates.} 59. Bc1 {[%emt 0:00:15]} Kd3 {[%emt 0:00:25]} 60. Kf6 {[%emt 0:00:24]} Bf5 {[%emt 0:00:08]} 61. Ke5 {[%emt 0:00:22]} Ke2 {[%emt 0:00:08]} 62. Bg5 {[%emt 0:00:13]} Kd1 {[%emt 0:00:07]} 63. Kd4 {[%emt 0:00:15]} c1=Q {[%emt 0:00:10]} 64. Bxc1 {[%emt 0:00:10]} Kxc1 {[%emt 0:00:02] KB-KPP} 65. Ke5 {[%emt 0:00:08]} Kd2 {[%emt 0:00:06]} 66. Kf4 {[%emt 0:00:08]} Ke2 {[%emt 0:00:21]} 67. Kg5 {[%emt 0:01:10]} e5 {[%emt 0:00:18]} 68. Kf6 {[%emt 0:00:20]} e4 {[%emt 0:00:08]} 69. Ke5 {[%emt 0:00:05]} Kf3 {[%emt 0:00:22]} 70. Kd4 {[%emt 0:00:15]} e3 {[%emt 0:00:09]} 71. Kc3 {[%emt 0:00:13]} e2 {[%emt 0:00:07]} 72. Kd2 {[%emt 0:00:09]} Kf2 {[%emt 0:00:02][%csl Gf2][%cal Re2e1]} 73. Kc3 {[%emt 0:01:46]} e1=Q+ {[%emt 0:00:10]} 74. Kd4 {[%emt 0:00:18]} Qe3+ {[%emt 0:01:48]} 75. Kc4 {[%emt 0:00:05]} Be6+ {[%emt 0:00:22]} 76. Kb5 {[%emt 0:00:24]} Qc3 {[%emt 0:00:32]} 77. g4 {[%emt 0:00:28]} Qc4+ {[%emt 0:00:30]} 78. Kb6 {[%emt 0:00:14]} Bd5 {[%emt 0:00:27]} 79. g5 {[%emt 0:00:13]} Qc6+ {[%emt 0:00:12]} 80. Ka5 {[%emt 0:00:14]} Qb7 {[%emt 0:00:20]} 81. Ka4 {[%emt 0:00:17]} Qb6 {[%emt 0:00:10]} 82. Ka3 {[%emt 0:00:09]} Qb3# {[%emt 0:00:02] Weighted Error Value: White=0.52/Black=0.35} 0-1